fUSD/lending_fUSD_20251109
["ID","MTS","AMOUNT","RATE_DAILY","PERIOD"]
[393490906,1762715808549,500.0,0.00039262,120]
[393490907,1762715808792,495.99899985,0.00039262,120]
[393490910,1762715820924,500.0,0.00039262,120]
[393490911,1762715821255,361.54,0.00039262,120]
[393490937,1762715971173,400.0,0.00039267,120]
[393490938,1762715973371,6719.11302248,0.00039267,120]
[393490939,1762716113172,210.63,0.00014722,2]
[393490940,1762716113267,210.63,0.00015467,2]
[393490941,1762716113482,210.63,0.00016211,2]
[393490943,1762716113714,210.63,0.00016956,2]
[393490944,1762716113914,210.63,0.000177,2]
[393490945,1762716208201,256.52,0.00039267,60]
[393490947,1762716308390,7946.85,0.00018,2]
[393490948,1762716308424,1821353.48332488,0.00018,2]
[393490951,1762716328700,400.0,0.00039267,120]
[393490953,1762716353383,19955.18686396,0.0001501,2]
[393490956,1762716379165,250.0,0.00017,2]
[393490961,1762716469835,3331846.70710876,0.00015,2]
[393490962,1762716484999,200.0,0.0001634,2]
[393490978,1762716621733,495.32,0.00013699,2]
[393490994,1762716631846,-210.63,0.00018445,2]
[393490995,1762716631856,-300.0,0.00018722,2]
[393490996,1762716631865,-300.0,0.00019,2]
[393490997,1762716631875,-2326.0,0.00019178,2]
[393490998,1762716631888,-210.63,0.00019189,2]
[393490999,1762716631898,-210.63,0.00019934,2]
[393491000,1762716631909,-495.32,0.00020187,2]
[393491001,1762716631918,-195.0,0.00020289,2]
[393491002,1762716631929,-300.0,0.00020289,2]
[393491003,1762716631939,-318.20713335,0.00020289,2]
[393491004,1762716631950,-210.63,0.00020678,2]
[393491005,1762716631969,-210.63,0.00021423,2]
[393491006,1762716631980,-210.63,0.00022167,2]
[393491007,1762716631989,-210.63,0.00022911,2]
[393491008,1762716631999,-210.63,0.00023656,2]
[393491009,1762716632008,-210.63,0.000244,2]
[393491010,1762716632018,-201.9,0.00024943,2]
[393491011,1762716632027,-936.81,0.0002498,2]
[393491013,1762716632036,-210.63,0.00025145,2]
[393491015,1762716632046,-220.7,0.00025434,2]
[393491017,1762716632055,-300.0,0.00025784,2]
[393491019,1762716632064,-300.0,0.00025784,2]
[393491021,1762716632073,-1200.0,0.00025784,2]
[393491022,1762716632085,-359.1291185,0.00025785,2]
[393491024,1762716632094,-500.0,0.00025785,2]
[393491026,1762716632104,-500.0,0.00025785,2]
[393491028,1762716632113,-500.0,0.00025785,2]
[393491029,1762716632123,-202.44003714,0.00025785,2]
[393491030,1762716632132,-500.0,0.00025785,2]
[393491031,1762716632141,-500.0,0.00025785,2]
[393491032,1762716632150,-500.0,0.00025785,2]
[393491033,1762716632159,-500.0,0.00025785,2]
[393491034,1762716632168,-500.0,0.00025785,2]
[393491035,1762716632177,-500.0,0.00025785,2]
[393491036,1762716632187,-500.0,0.00025785,2]
[393491037,1762716632196,-500.0,0.00025785,2]
[393491038,1762716632206,-206.48718909,0.00025785,2]
[393491039,1762716632215,-500.0,0.00025785,2]
[393491040,1762716632225,-500.0,0.00025785,2]
[393491041,1762716632234,-500.0,0.00025785,2]
[393491042,1762716632243,-500.0,0.00025785,2]
[393491043,1762716632253,-500.0,0.00025785,2]
[393491044,1762716632261,-500.0,0.00025785,2]
[393491045,1762716632271,-500.0,0.00025785,2]
[393491046,1762716632280,-500.0,0.00025785,2]
[393491047,1762716632290,-500.0,0.00025785,2]
[393491048,1762716632299,-500.0,0.00025785,2]
[393491049,1762716632309,-8321.84875136,0.00025786,2]
[393491050,1762716632321,-383.47776338,0.00025786,2]
[393491051,1762716632332,-999.51833433,0.00025786,2]
[393491052,1762716632343,-295.14515093,0.00025786,2]
[393491053,1762716632352,-417.12269227,0.00025786,2]
[393491061,1762716637777,-582.86730773,0.00025786,2]
[393491062,1762716637788,-6049.53675113,0.00025786,2]
[393491063,1762716637800,-691.20796414,0.00025786,2]
[393491064,1762716637836,-3021.05781,0.00025786,2]
[393491065,1762716637848,-6832.89182072,0.00025786,2]
[393491066,1762716637954,-637.68565401,0.00025786,2]
[393491067,1762716637963,-150.99,0.00025786,2]
[393491068,1762716637974,-5528.9,0.00025786,2]
[393491069,1762716637984,-210.63,0.00025889,2]
[393491070,1762716637995,-1000.0,0.00026127,2]
[393491071,1762716638004,-174.52267497,0.00026136,2]
[393491072,1762716638014,-151.0,0.000262,2]
[393491073,1762716638025,-151.0,0.000262,2]
[393491074,1762716638036,-151.0,0.000262,2]
[393491075,1762716638046,-151.0,0.000262,2]
[393491076,1762716638056,-151.0,0.000262,2]
[393491077,1762716638067,-151.0,0.000262,2]
[393491078,1762716638077,-151.0,0.000262,2]
[393491079,1762716638087,-274.48747551,0.00026211,2]
[393491080,1762716638096,-150.0,0.00026211,2]
[393491081,1762716638106,-150.0,0.00026211,2]
[393491082,1762716638117,-150.0,0.00026211,2]
[393491084,1762716638128,-150.0,0.00026211,2]
[393491086,1762716638139,-150.0,0.00026211,2]
[393491088,1762716638150,-198.85664812,0.00026216,2]
[393491090,1762716638159,-390.93843422,0.00026216,2]
[393491092,1762716638170,-41795.98911317,0.00026217,3]
[393491094,1762716638181,-41728.06783433,0.00026217,3]
[393491096,1762716638191,-500.0,0.00026226,2]
[393491098,1762716638203,-22906.82788355,0.00026227,2]
[393491101,1762716638224,-912.66,0.00026227,2]
[393491107,1762716639765,-937.05173113,0.00026227,2]
[393491108,1762716639778,-6649.7338226,0.00026227,2]
[393491109,1762716639820,-216056.661721,0.00026227,2]
[393491110,1762716639832,-251.37,0.00026227,2]
[393491111,1762716639878,-3743.36417912,0.00026227,2]
[393491112,1762716639890,-1564.4635158,0.00026227,2]
[393491113,1762716639902,-826.46184631,0.00026227,2]
[393491114,1762716639914,-253.78200721,0.00026227,2]
[393491115,1762716639934,-2050.77884625,0.00026227,2]
[393491116,1762716639945,-400.0,0.00026227,2]
[393491117,1762716639956,-1606.18584716,0.00026227,2]
[393491118,1762716639967,-3755.99150574,0.00026227,2]
[393491119,1762716639979,-10471.0,0.00026227,2]
[393491120,1762716639990,-661.15065545,0.00026227,2]
[393491127,1762716642935,-2040.28669856,0.00026227,2]
[393491128,1762716642948,-264.551287,0.00026227,2]
[393491129,1762716642959,-842.34744144,0.00026227,2]
[393491130,1762716643752,-1215.6,0.00026227,2]
[393491131,1762716643808,-115494.97118626,0.00026227,2]
[393491134,1762716643948,-132.66082853,0.00026227,2]
[393491136,1762716643959,-628.83524266,0.00026227,2]
[393491138,1762716643969,-2025.91528544,0.00026227,2]
[393491144,1762716646016,-702.0,0.00026227,2]
[393491145,1762716646029,-23605.34846879,0.00026227,2]
[393491146,1762716646041,-344.1969,0.00026236,2]
[393491147,1762716646051,-500.0,0.00026273,2]
[393491148,1762716646061,-500.0,0.00026273,2]
[393491149,1762716646071,-150.0,0.00026348,2]
[393491150,1762716646082,-27841.3523158,0.00026437,3]
[393491151,1762716646093,-150.0,0.00026485,2]
[393491152,1762716646103,-210.63,0.00026634,2]
[393491153,1762716646113,-495.32,0.00026676,2]
[393491154,1762716646123,-14607.79609536,0.00026811,3]
[393491155,1762716646143,-587.90238695,0.00026811,3]
[393491156,1762716646515,-1558.35119937,0.00026811,3]
[393491157,1762716646527,-4042.88357462,0.00026811,3]
[393491158,1762716646537,-500.0,0.00026821,2]
[393491159,1762716646549,-3425.0,0.00027091,2]
[393491160,1762716646559,-2289.985,0.00027091,2]
[393491161,1762716646569,-210.63,0.00027378,2]
[393491162,1762716646578,-813.749,0.00027521,2]
[393491163,1762716646587,-1273.0,0.00027521,2]
[393491164,1762716646597,-150.0,0.00027521,2]
[393491165,1762716646606,-1189.0,0.00027521,2]
[393491166,1762716646616,-906.0,0.00027521,2]
[393491167,1762716646625,-1316.0,0.00027521,2]
[393491168,1762716646634,-574.0,0.00027521,2]
[393491170,1762716646643,-608.0,0.00027521,2]
[393491172,1762716646653,-151.16713156,0.000276,5]
[393491174,1762716646662,-420.0,0.0002791,2]
[393491175,1762716646671,-420.0,0.0002791,2]
[393491176,1762716646681,-1680.0,0.00028035,2]
[393491177,1762716646690,-210.63,0.00028123,2]
[393491178,1762716646699,-1786.86865089,0.00028579,2]
[393491179,1762716646712,-3080.13134911,0.00028579,2]
[393491180,1762716646721,-174.52267495,0.00028742,2]
[393491181,1762716646731,-210.63,0.00028867,2]
[393491182,1762716646740,-800.0,0.00029543,11]
[393491183,1762716646749,-800.0,0.00029543,11]
[393491184,1762716646758,-800.0,0.00029543,11]
[393491185,1762716646767,-800.0,0.00029543,11]
[393491186,1762716646776,-800.0,0.00029543,11]
[393491187,1762716646786,-800.0,0.00029543,11]
[393491188,1762716646796,-800.0,0.00029543,11]
[393491189,1762716646806,-800.0,0.00029543,11]
[393491190,1762716646815,-800.0,0.00029543,11]
[393491191,1762716646824,-800.0,0.00029543,11]
[393491192,1762716646834,-220.7,0.00029632,2]
[393491193,1762716646843,-20796.9332563,0.00029758,3]
[393491194,1762716646853,-20796.9332563,0.0002998,3]
[393491195,1762716646863,-14684.09959276,0.0002999,3]
[393491196,1762716646879,-40998.60503894,0.0002999,3]
[393491197,1762716646888,-19476.74468993,0.0002999,3]
[393491198,1762716646900,-2333.23749002,0.0002999,3]
[393491199,1762716646912,-5797.93724195,0.0002999,3]
[393491200,1762716646924,-674.76962602,0.0002999,3]
[393491201,1762716646936,-1739.80858611,0.0002999,3]
[393491202,1762716646948,-562.74088012,0.0002999,3]
[393491203,1762716646960,-585.16349306,0.0002999,3]
[393491204,1762716646975,-3425.8779472,0.0002999,3]
[393491205,1762716646987,-589.84531789,0.0002999,3]
[393491369,1762716846200,150.0,0.00039229,120]
[393491370,1762716862664,500.0,0.00039229,120]
[393491371,1762716862908,500.0,0.00039229,120]
[393491372,1762716863158,500.0,0.00039229,120]
[393491373,1762716863591,193.47,0.00039229,120]
[393491425,1762717189200,1000.0,0.00039243,60]
[393491426,1762717203358,1000.0,0.00039243,60]
[393491427,1762717211762,1000.0,0.00039243,60]
[393491428,1762717218729,1000.0,0.00039243,60]
[393491429,1762717224963,1000.0,0.00039243,60]
[393491431,1762717283622,1000.0,0.00039243,60]
[393491432,1762717293850,1000.0,0.00039243,60]
[393491436,1762717327663,2000.0,0.00039243,120]
[393491447,1762717771123,-181.28,0.00021606,2]
[393491450,1762717832006,-566.25609508,0.00025615,2]
[393491451,1762717832019,-633.74390492,0.00025615,2]
[393491452,1762717832029,-300.0,0.00025615,2]
[393491453,1762717832039,-159.71131613,0.00025616,2]
[393491454,1762717832048,-228.31899521,0.00025616,2]
[393491455,1762717832057,-6000.15936028,0.00025616,2]
[393491456,1762717832067,-151.0,0.0002567,2]
[393491457,1762717832076,-151.0,0.0002567,2]
[393491458,1762717832085,-151.0,0.0002567,2]
[393491459,1762717832096,-151.0,0.0002567,2]
[393491460,1762717832105,-151.0,0.0002567,2]
[393491461,1762717832116,-151.0,0.0002567,2]
[393491462,1762717832125,-151.0,0.0002567,2]
[393491463,1762717832135,-151.0,0.0002567,2]
[393491464,1762717832144,-229.89398899,0.0002567,2]
[393491465,1762717832153,-500.0,0.00025673,2]
[393491466,1762717832163,-500.0,0.00025673,2]
[393491467,1762717832172,-500.0,0.00025673,2]
[393491468,1762717832182,-500.0,0.00025673,2]
[393491469,1762717832192,-474.89716382,0.00025676,2]
[393491470,1762717832206,-20205.27527065,0.00025676,3]
[393491471,1762717832218,-675.06737336,0.00025676,3]
[393491472,1762717832230,-311.2298408,0.00025676,3]
[393491473,1762717832242,-1171.87051943,0.00025676,3]
[393491474,1762717832258,-2548.73865149,0.00025676,3]
[393491488,1762717832456,-6895.11092951,0.00025676,3]
[393491490,1762717832468,-449.454,0.00025676,3]
[393491492,1762717832482,-289.14843026,0.00025676,3]
[393491495,1762717832494,-14261.50416,0.00025676,3]
[393491499,1762717837944,-869.93486096,0.00025676,3]
[393491500,1762717837956,-467.9342124,0.00025676,3]
[393491501,1762717837997,-599.24625432,0.00025676,3]
[393491502,1762717838009,-1215.20249003,0.00025676,3]
[393491503,1762717838105,-33479.82015509,0.00025676,3]
[393491504,1762717838115,-151.0,0.00025683,7]
[393491505,1762717838125,-219.39565715,0.00025685,2]
[393491506,1762717838135,-606.07903892,0.00025685,2]
[393491507,1762717838144,-381.7869413,0.00025685,2]
[393491508,1762717838154,-420000.0,0.00025686,2]
[393491510,1762717838165,-877.27,0.00025716,2]
[393491512,1762717838176,-225.08,0.00025716,2]
[393491514,1762717838186,-1303.38,0.00025716,2]
[393491516,1762717838198,-1000.0,0.00026127,2]
[393491518,1762717838210,-170.18333266,0.00026173,2]
[393491520,1762717838220,-1000.0,0.00026221,2]
[393491522,1762717838232,-1000.0,0.00026221,2]
[393491524,1762717838243,-417.54862495,0.00026226,2]
[393491526,1762717838254,-277.14486753,0.00026446,2]
[393491528,1762717838264,-214.88601179,0.0002668,2]
[393491530,1762717838275,-1500.0,0.00026768,2]
[393491532,1762717838284,-1023.22717164,0.00026768,2]
[393491534,1762717838294,-200.0,0.00026902,2]
[393491536,1762717838304,-610.0,0.00026905,2]
[393491537,1762717838314,-214.88601179,0.00026972,2]
[393491539,1762717838324,-12399.31,0.00027039,2]
[393491541,1762717838334,-150.0,0.00027042,2]
[393491543,1762717838344,-841.47,0.00027097,2]
[393491545,1762717838355,-228.31899515,0.00027119,2]
[393491547,1762717838364,-6000.15936023,0.00027119,2]
[393491549,1762717838374,-214.88601179,0.00027337,2]
[393491551,1762717838384,-214.88601179,0.00027541,2]
[393491553,1762717838394,-159.71131611,0.00027548,2]
[393491555,1762717838405,-1680.0,0.00027857,2]
[393491557,1762717838415,-214.88601179,0.000279,2]
[393491559,1762717838425,-214.88601179,0.00028023,2]
[393491561,1762717838435,-500.0,0.00028061,2]
[393491563,1762717838444,-300.0,0.00028178,60]
[393491565,1762717838454,-214.88601179,0.00028375,2]
[393491567,1762717838463,-214.88601179,0.00028599,2]
[393491569,1762717838473,-228.31899515,0.00028622,2]
[393491571,1762717838485,-6000.15936023,0.00028622,2]
[393491574,1762717838495,-27813.1790494,0.00028674,3]
[393491576,1762717838505,-204.8,0.00028684,14]
[393491578,1762717838517,-150.0,0.00028684,2]
[393491579,1762717838527,-150.0,0.00028684,2]
[393491581,1762717838537,-150.0,0.00028684,2]
[393491583,1762717838546,-150.0,0.00028684,2]
[393491585,1762717838556,-150.0,0.00028684,2]
[393491587,1762717838566,-150.0,0.00028684,2]
[393491589,1762717838575,-150.0,0.00028684,2]
[393491591,1762717838587,-150.0,0.00028684,2]
[393491593,1762717838597,-608.0,0.00028684,2]
[393491595,1762717838606,-574.0,0.00028684,2]
[393491597,1762717838618,-3425.0,0.00028684,2]
[393491600,1762717838629,-1316.0,0.00028684,2]
[393491601,1762717838638,-1683.0,0.00028684,2]
[393491603,1762717838648,-821.0,0.00028684,2]
[393491605,1762717838659,-813.0,0.00028684,2]
[393491608,1762717838669,-1273.0,0.00028684,2]
[393491609,1762717838678,-6661.0,0.00028684,2]
[393491611,1762717838688,-559.0,0.00028684,2]
[393491613,1762717838697,-6478.0,0.00028684,2]
[393491615,1762717838707,-2142.0,0.00028684,2]
[393491617,1762717838717,-815.72,0.00028685,2]
[393491619,1762717838727,-500.0,0.000287,5]
[393491621,1762717838738,-500.0,0.000287,5]
[393491623,1762717838747,-500.0,0.000287,5]
[393491625,1762717838757,-255.38,0.00028769,2]
[393491627,1762717838767,-150.0,0.00028821,2]
[393491629,1762717838777,-150.0,0.00028821,2]
[393491631,1762717838787,-200.0,0.00028958,2]
[393491633,1762717838797,-200.0,0.00028958,2]
[393491635,1762717838807,-204.8,0.00028958,14]
[393491637,1762717838817,-214.88601179,0.0002904,2]
[393491639,1762717838826,-214.88601179,0.00029102,2]
[393491641,1762717838836,-1016.69156181,0.00029135,2]
[393491643,1762717838846,-690.54252196,0.00029198,2]
[393491645,1762717838855,-204.8,0.00029232,14]
[393491647,1762717838865,-27813.1790494,0.00029268,3]
[393491648,1762717838875,-481.92632213,0.00029273,5]
[393491650,1762717838885,-500.0,0.00029273,5]
[393491652,1762717838895,-500.0,0.00029273,5]
[393491654,1762717838906,-500.0,0.00029273,5]
[393491657,1762717838918,-500.0,0.00029273,5]
[393491659,1762717838929,-184.25377407,0.00029273,5]
[393491661,1762717838939,-500.0,0.00029273,5]
[393491662,1762717838949,-500.0,0.00029273,5]
[393491665,1762717838961,-500.0,0.00029273,5]
[393491667,1762717838972,-500.0,0.00029273,5]
[393491669,1762717838982,-500.0,0.00029273,5]
[393491670,1762717838992,-505.66579362,0.00029273,5]
[393491672,1762717839002,-500.0,0.00029273,5]
[393491674,1762717839012,-500.0,0.00029273,5]
[393491677,1762717839023,-500.0,0.00029273,5]
[393491678,1762717839032,-162.47232893,0.00029273,5]
[393491680,1762717839042,-568.88126658,0.00029273,5]
[393491682,1762717839052,-500.0,0.00029273,5]
[393491684,1762717839060,-500.0,0.00029273,5]
[393491686,1762717839068,-500.0,0.00029273,5]
[393491688,1762717839077,-500.0,0.00029273,5]
[393491690,1762717839088,-162.75475319,0.00029273,2]
[393491692,1762717839098,-55626.3580989,0.00029278,3]
[393491694,1762717839107,-41486.0853887,0.00029278,3]
[393491696,1762717839118,-151.0,0.00029285,7]
[393491698,1762717839128,-27813.1790494,0.00029288,3]
[393491700,1762717839139,-41486.0853887,0.00029288,3]
[393491702,1762717839149,-139065.895247,0.00029298,3]
[393491704,1762717839159,-124458.256166,0.00029298,3]
[393491706,1762717839169,-1234.23184451,0.00029298,2]
[393491708,1762717839179,-152.21,0.00029298,2]
[393491711,1762717839190,-151.0,0.00029305,7]
[393491712,1762717839202,-1992.1902883,0.00029308,2]
[393491714,1762717839214,-3178.7344661,0.00029308,2]
[393491716,1762717839226,-138809.44442439,0.00029308,2]
[393491719,1762717839240,-65093.60396414,0.00029308,2]
[393491725,1762717839302,705.04220838,0.00039243,120]
[393491795,1762717840059,-12122.85218123,0.00029308,2]
[393491818,1762717840273,-7136.28828954,0.00029308,2]
[393491820,1762717840285,-158.345241,0.00029308,31]
[393491822,1762717840295,-151.0,0.00029308,31]
[393491824,1762717840305,-151.0,0.00029308,30]
[393491826,1762717840314,-151.0,0.00029308,31]
[393491828,1762717840324,-151.0,0.00029308,31]
[393491830,1762717840333,-60.72441856,0.00029308,31]
[393491832,1762717840345,-90.27558144,0.00029308,31]
[393491834,1762717840354,-151.0,0.00029308,31]
[393491836,1762717840363,-151.0,0.00029308,31]
[393491838,1762717840372,-151.0,0.00029308,31]
[393491840,1762717840381,-151.0,0.00029308,31]
[393491842,1762717840391,-151.0,0.00029308,31]
[393491844,1762717840400,-174.051404,0.00029308,31]
[393491846,1762717840409,-174.051404,0.00029308,31]
[393491848,1762717840419,-151.0,0.00029308,15]
[393491850,1762717840428,-174.051404,0.00029308,31]
[393491852,1762717840437,-151.0,0.00029308,31]
[393491854,1762717840448,-151.0,0.00029308,15]
[393491856,1762717840457,-174.051404,0.00029308,31]
[393491858,1762717840467,-152.099214,0.00029308,15]
[393491860,1762717840476,-151.0,0.00029308,31]
[393491862,1762717840487,-151.0,0.00029308,31]
[393491864,1762717840495,-151.0,0.00029308,31]
[393491866,1762717840505,-151.0,0.00029308,31]
[393491868,1762717840515,-151.0,0.00029308,31]
[393491870,1762717840524,-151.0,0.00029308,31]
[393491872,1762717840533,-151.0,0.00029308,31]
[393491874,1762717840543,-151.0,0.00029308,31]
[393491877,1762717840552,-155.796414,0.00029308,31]
[393491878,1762717840561,-151.0,0.00029308,31]
[393491880,1762717840570,-323.440184,0.00029308,31]
[393491882,1762717840580,-323.440184,0.00029308,31]
[393491884,1762717840590,-323.440184,0.00029308,31]
[393491886,1762717840600,-151.0,0.00029308,31]
[393491888,1762717840609,-323.440184,0.00029308,31]
[393491891,1762717840619,-151.0,0.00029308,31]
[393491893,1762717840628,-151.0,0.00029308,31]
[393491895,1762717840638,-151.0,0.00029308,31]
[393491897,1762717840648,-151.0,0.00029308,31]
[393491898,1762717840657,-161.232217,0.00029308,31]
[393491900,1762717840667,-151.0,0.00029308,31]
[393491902,1762717840676,-151.0,0.00029308,31]
[393491904,1762717840685,-176.334003,0.00029308,31]
[393491907,1762717840696,-151.0,0.00029308,31]
[393491908,1762717840705,-151.0,0.00029308,31]
[393491910,1762717840715,-504.45357302,0.00029373,5]
[393491913,1762717840725,-638.23167784,0.00029373,5]
[393491914,1762717840735,-200.0,0.00029373,5]
[393491916,1762717840744,-200.0,0.00029373,5]
[393491918,1762717840754,-150.0,0.00029373,5]
[393491920,1762717840763,-200.0,0.00029373,5]
[393491923,1762717840773,-200.0,0.00029373,5]
[393491925,1762717840782,-150.0,0.00029373,5]
[393491926,1762717840792,-150.0,0.00029373,5]
[393491928,1762717840801,-154.5547493,0.00029373,5]
[393491930,1762717840810,-200.08208835,0.00029373,5]
[393491932,1762717840820,-150.0,0.00029373,2]
[393491934,1762717840830,-150.0,0.00029373,5]
[393491936,1762717840838,-150.0,0.00029373,2]
[393491938,1762717840849,-150.0,0.00029373,5]
[393491940,1762717840859,-428.19,0.000294,7]
[393491942,1762717840868,-256.68,0.000294,7]
[393491944,1762717840878,-159.71131611,0.00029481,2]
[393491946,1762717840887,-214.88601186,0.00029487,2]
[393491948,1762717840897,-204.8,0.00029506,14]
[393491951,1762717840907,-690.54252194,0.0002951,2]
[393491952,1762717840916,-150.0,0.0002951,5]
[393491954,1762717840926,-150.0,0.0002951,5]
[393491957,1762717840935,-150.0,0.0002951,5]
[393491958,1762717840948,-150.0,0.0002951,5]
[393491960,1762717840957,-1016.69156181,0.00029541,2]
[393491962,1762717840967,-200.0,0.00029647,5]
[393491964,1762717840977,-200.0,0.00029647,5]
[393491966,1762717840987,-209.0,0.00029647,5]
[393491968,1762717840996,-154.0,0.00029647,5]
[393491970,1762717841005,-629.35,0.00029719,2]
[393491972,1762717841015,-204.8,0.0002978,14]
[393491974,1762717841025,-500.0,0.00029821,5]
[393491977,1762717841035,-500.0,0.00029821,5]
[393491979,1762717841045,-500.0,0.00029821,5]
[393491980,1762717841054,-516.40310031,0.00029821,5]
[393491982,1762717841063,-1000.0,0.00029821,5]
[393491984,1762717841072,-500.0,0.00029821,5]
[393491986,1762717841081,-1000.0,0.00029821,5]
[393491988,1762717841092,-500.0,0.00029821,5]
[393491991,1762717841103,-500.0,0.00029821,5]
[393491993,1762717841112,-500.0,0.00029821,5]
[393491995,1762717841122,-1003.58550355,0.00029821,5]
[393491997,1762717841131,-690.54252194,0.00029821,2]
[393491998,1762717841141,-20743.0426943,0.0002987,3]
[393492001,1762717841151,-500.51641195,0.00029873,5]
[393492003,1762717841160,-500.0,0.00029873,5]
[393492005,1762717841169,-500.0,0.00029873,5]
[393492006,1762717841178,-500.0,0.00029873,5]
[393492008,1762717841188,-500.0,0.00029873,5]
[393492010,1762717841199,-27813.1790494,0.00029891,3]
[393492012,1762717841211,-20743.0426943,0.0002996,3]
[393492014,1762717841221,-27813.1790494,0.0002997,3]
[393492016,1762717841230,-41486.0853887,0.0002997,3]
[393492018,1762717841240,-500.0,0.00029973,5]
[393492020,1762717841250,-500.0,0.00029973,5]
[393492022,1762717841261,-500.0,0.00029973,5]
[393492024,1762717841270,-500.0,0.00029973,5]
[393492026,1762717841281,-151.0,0.0002998,31]
[393492028,1762717841291,-155.663389,0.0002998,30]
[393492030,1762717841300,-151.0,0.0002998,31]
[393492032,1762717841310,-151.0,0.0002998,31]
[393492034,1762717841319,-151.0,0.0002998,31]
[393492036,1762717841328,-166.218065,0.0002998,31]
[393492038,1762717841338,-151.0,0.0002998,31]
[393492040,1762717841347,-151.0,0.0002998,31]
[393492042,1762717841357,-151.0,0.0002998,31]
[393492044,1762717841366,-151.0,0.0002998,31]
[393492046,1762717841375,-151.0,0.0002998,31]
[393492048,1762717841384,-151.0,0.0002998,31]
[393492050,1762717841393,-151.0,0.0002998,31]
[393492052,1762717841402,-151.0,0.0002998,31]
[393492054,1762717841412,-164.261186,0.0002998,31]
[393492056,1762717841421,-151.0,0.0002998,31]
[393492058,1762717841431,-151.0,0.0002998,31]
[393492060,1762717841440,-185.640848,0.0002998,31]
[393492062,1762717841450,-199.703718,0.0002998,31]
[393492063,1762717841459,-151.0,0.0002998,31]
[393492065,1762717841469,-158.427453,0.0002998,31]
[393492067,1762717841478,-151.0,0.0002998,31]
[393492069,1762717841488,-151.0,0.0002998,31]
[393492071,1762717841498,-151.0,0.0002998,31]
[393492073,1762717841507,-151.0,0.0002998,31]
[393492075,1762717841517,-151.0,0.0002998,31]
[393492077,1762717841527,-55626.3580989,0.0002998,3]
[393492079,1762717841536,-18397.13039083,0.0002998,3]
[393492081,1762717841549,-23088.95499787,0.0002998,3]
[393492083,1762717841558,-151.0,0.00029987,7]
[393492085,1762717841567,-152.0,0.0002999,3]
[393492087,1762717841576,-1242.0,0.0002999,3]
[393492089,1762717841585,-152.0,0.0002999,3]
[393492091,1762717841595,-152.0,0.0002999,3]
[393492093,1762717841604,-1242.0,0.0002999,3]
[393492095,1762717841613,-152.0,0.0002999,3]
[393492097,1762717841623,-152.0,0.0002999,3]
[393492099,1762717841631,-1242.0,0.0002999,3]
[393492101,1762717841641,-152.0,0.0002999,3]
[393492102,1762717841650,-152.0,0.0002999,3]
[393492104,1762717841661,-1242.0,0.0002999,3]
[393492106,1762717841670,-152.0,0.0002999,3]
[393492108,1762717841680,-152.0,0.0002999,3]
[393492110,1762717841689,-1242.0,0.0002999,3]
[393492112,1762717841698,-152.0,0.0002999,3]
[393492114,1762717841707,-285.445704,0.0002999,31]
[393492116,1762717841717,-151.0,0.0002999,30]
[393492118,1762717841725,-151.0,0.0002999,31]
[393492120,1762717841735,-151.677788,0.0002999,31]
[393492122,1762717841745,-296.193594,0.0002999,31]
[393492125,1762717841755,-55626.3580989,0.0002999,3]